[Event "Titled Tuesday Blitz August 22 Late 2023"]
[White "Haszon, David"]
[Black "Fernandez Bustamante, Leancy B."]
[WhiteFideId "733610"]
[BlackFideId "3523870"]
[WhiteElo "2434"]
[BlackElo "2251"]
[Result "1-0"]
[Round "3"]
[TimeControl "180+1"]
[Date "2023.08.22"]
[WhiteClock "0:00:10"]
[BlackClock "0:00:05"]
[Board "188"]

1. e4 {[%clk 0:03:00]}  c5 {[%clk 0:03:00]} 2. Nf3 {[%clk 0:03:00]}  a6 {[%clk 0:03:00]} 3. d4 {[%clk 0:02:58]}  cxd4 {[%clk 0:03:01]} 4. c3 {[%clk 0:02:58]}  dxc3 {[%clk 0:02:59]} 5. Nxc3 {[%clk 0:02:59]}  e6 {[%clk 0:02:58]} 6. Bc4 {[%clk 0:02:53]}  Ne7 {[%clk 0:02:56]} 7. O-O {[%clk 0:02:53]}  Nbc6 {[%clk 0:02:56]} 8. Qe2 {[%clk 0:02:52]}  Ng6 {[%clk 0:02:56]} 9. Rd1 {[%clk 0:02:51]}  Nce5 {[%clk 0:02:53]} 10. Nxe5 {[%clk 0:02:46]}  Nxe5 {[%clk 0:02:54]} 11. Bb3 {[%clk 0:02:46]}  Bc5 {[%clk 0:02:32]} 12. Bf4 {[%clk 0:02:34]}  Ng6 {[%clk 0:02:30]} 13. Bg3 {[%clk 0:02:33]}  O-O {[%clk 0:02:29]} 14. Rac1 {[%clk 0:02:24]}  Be7 {[%clk 0:02:28]} 15. e5 {[%clk 0:02:20]}  b5 {[%clk 0:02:24]} 16. Ne4 {[%clk 0:02:18]}  Qb6 {[%clk 0:02:21]} 17. Nd6 {[%clk 0:02:12]}  Bb7 {[%clk 0:02:14]} 18. a4 {[%clk 0:01:54]}  bxa4 {[%clk 0:02:06]} 19. Bxa4 {[%clk 0:01:55]}  Rfd8 {[%clk 0:01:54]} 20. Qg4 {[%clk 0:01:32]}  Bxd6 {[%clk 0:01:49]} 21. exd6 {[%clk 0:01:27]}  Qxb2 {[%clk 0:01:46]} 22. h4 {[%clk 0:01:19]}  h5 {[%clk 0:01:40]} 23. Qxh5 {[%clk 0:01:14]}  Qb4 {[%clk 0:01:32]} 24. Bc2 {[%clk 0:01:10]}  Rac8 {[%clk 0:01:20]} 25. Bxg6 {[%clk 0:01:06]}  fxg6 {[%clk 0:01:18]} 26. Qxg6 {[%clk 0:01:07]}  Rxc1 {[%clk 0:01:14]} 27. Rxc1 {[%clk 0:01:08]}  Rf8 {[%clk 0:01:10]} 28. Rc7 {[%clk 0:00:58]}  Bc6 {[%clk 0:01:04]} 29. Kh2 {[%clk 0:00:41]}  Qb5 {[%clk 0:00:52]} 30. h5 {[%clk 0:00:33]}  Qf5 {[%clk 0:00:49]} 31. Ra7 {[%clk 0:00:20]}  Qd5 {[%clk 0:00:34]} 32. f3 {[%clk 0:00:18]}  Rf5 {[%clk 0:00:30]} 33. Qe8+ {[%clk 0:00:16]}  Kh7 {[%clk 0:00:29]} 34. Qg6+ {[%clk 0:00:17]}  Kg8 {[%clk 0:00:26]} 35. Qe8+ {[%clk 0:00:16]}  Rf8 {[%clk 0:00:23]} 36. Qg6 {[%clk 0:00:17]}  a5 {[%clk 0:00:19]} 37. Rc7 {[%clk 0:00:14]}  Qf5 {[%clk 0:00:15]} 38. Ra7 {[%clk 0:00:13]}  Qxg6 {[%clk 0:00:13]} 39. hxg6 {[%clk 0:00:13]}  a4 {[%clk 0:00:13]} 40. Ra6 {[%clk 0:00:12]}  Rf6 {[%clk 0:00:13]} 41. Be5 {[%clk 0:00:10]}  Rxg6 {[%clk 0:00:12]} 42. Rxc6 {[%clk 0:00:11]}  dxc6 {[%clk 0:00:11]} 43. d7 {[%clk 0:00:11]}  Rh6+ {[%clk 0:00:05]} 44. Kg1 {[%clk 0:00:10]} 1-0


[Site "https://www.chess.com"]

[Event "Titled Tuesday Blitz August 22 Late 2023"]
[White "Kohler, Aran"]
[Black "Nunez V, Gustavo Eduardo"]
[WhiteFideId "1002856"]
[BlackFideId "4403690"]
[WhiteElo "2248"]
[BlackElo "2430"]
[Result "0-1"]
[Round "3"]
[TimeControl "180+1"]
[Date "2023.08.22"]
[WhiteClock "0:00:06"]
[BlackClock "0:00:11"]
[Board "190"]

1. d4 {[%clk 0:03:00]}  Nf6 {[%clk 0:02:57]} 2. Nf3 {[%clk 0:02:58]}  g6 {[%clk 0:02:57]} 3. Bg5 {[%clk 0:02:58]}  Bg7 {[%clk 0:02:57]} 4. Nbd2 {[%clk 0:02:58]}  h6 {[%clk 0:02:58]} 5. Bxf6 {[%clk 0:02:49]}  Bxf6 {[%clk 0:02:58]} 6. c3 {[%clk 0:02:49]}  d6 {[%clk 0:02:58]} 7. e4 {[%clk 0:02:49]}  O-O {[%clk 0:02:57]} 8. Bd3 {[%clk 0:02:49]}  e5 {[%clk 0:02:57]} 9. h3 {[%clk 0:02:36]}  Nc6 {[%clk 0:02:57]} 10. d5 {[%clk 0:02:33]}  Ne7 {[%clk 0:02:56]} 11. c4 {[%clk 0:02:30]}  Bg7 {[%clk 0:02:56]} 12. b4 {[%clk 0:02:22]}  a5 {[%clk 0:02:56]} 13. a3 {[%clk 0:02:21]}  f5 {[%clk 0:02:55]} 14. O-O {[%clk 0:02:07]}  f4 {[%clk 0:02:54]} 15. c5 {[%clk 0:02:06]}  g5 {[%clk 0:02:48]} 16. Nh2 {[%clk 0:02:00]}  Ng6 {[%clk 0:02:44]} 17. Rc1 {[%clk 0:01:54]}  axb4 {[%clk 0:02:40]} 18. axb4 {[%clk 0:01:53]}  f3 {[%clk 0:02:10]} 19. Ndxf3 {[%clk 0:01:46]}  Nf4 {[%clk 0:02:10]} 20. Bc4 {[%clk 0:01:44]}  Ra3 {[%clk 0:02:01]} 21. Ra1 {[%clk 0:01:25]}  Rc3 {[%clk 0:01:50]} 22. Rc1 {[%clk 0:01:17]}  Ra3 {[%clk 0:01:46]} 23. Ra1 {[%clk 0:01:16]}  Rc3 {[%clk 0:01:46]} 24. Rc1 {[%clk 0:01:16]}  Rxc1 {[%clk 0:01:29]} 25. Qxc1 {[%clk 0:01:15]}  h5 {[%clk 0:01:25]} 26. Nd2 {[%clk 0:01:02]}  Qf6 {[%clk 0:01:17]} 27. f3 {[%clk 0:00:57]}  Bh6 {[%clk 0:01:10]} 28. Qe1 {[%clk 0:00:54]}  Qe7 {[%clk 0:00:58]} 29. Qg3 {[%clk 0:00:50]}  Kh7 {[%clk 0:00:50]} 30. Kh1 {[%clk 0:00:49]}  dxc5 {[%clk 0:00:47]} 31. b5 {[%clk 0:00:46]}  b6 {[%clk 0:00:41]} 32. Ra1 {[%clk 0:00:44]}  h4 {[%clk 0:00:19]} 33. Qe1 {[%clk 0:00:42]}  Nh5 {[%clk 0:00:19]} 34. Ng4 {[%clk 0:00:42]}  Ng3+ {[%clk 0:00:19]} 35. Kh2 {[%clk 0:00:41]}  Bxg4 {[%clk 0:00:18]} 36. hxg4 {[%clk 0:00:41]}  Bg7 {[%clk 0:00:17]} 37. Nf1 {[%clk 0:00:41]}  Nxf1+ {[%clk 0:00:15]} 38. Qxf1 {[%clk 0:00:40]}  Kg6 {[%clk 0:00:14]} 39. Ra7 {[%clk 0:00:39]}  Rh8 {[%clk 0:00:14]} 40. Qa1 {[%clk 0:00:37]}  Qf7 {[%clk 0:00:14]} 41. Qf1 {[%clk 0:00:27]}  Qf4+ {[%clk 0:00:14]} 42. Kg1 {[%clk 0:00:26]}  Qe3+ {[%clk 0:00:13]} 43. Kh2 {[%clk 0:00:23]}  Qf4+ {[%clk 0:00:14]} 44. Kg1 {[%clk 0:00:23]}  h3 {[%clk 0:00:14]} 45. gxh3 {[%clk 0:00:21]}  Qg3+ {[%clk 0:00:12]} 46. Qg2 {[%clk 0:00:21]}  Rxh3 {[%clk 0:00:09]} 47. Qxg3 {[%clk 0:00:20]}  Rxg3+ {[%clk 0:00:10]} 48. Kf2 {[%clk 0:00:21]}  Rh3 {[%clk 0:00:11]} 49. Rxc7 {[%clk 0:00:21]}  Rh2+ {[%clk 0:00:12]} 50. Kg3 {[%clk 0:00:21]}  Rc2 {[%clk 0:00:12]} 51. Rc6+ {[%clk 0:00:21]}  Bf6 {[%clk 0:00:12]} 52. Bf1 {[%clk 0:00:19]}  Rc1 {[%clk 0:00:12]} 53. Be2 {[%clk 0:00:17]}  Rc2 {[%clk 0:00:12]} 54. Kf2 {[%clk 0:00:17]}  Kf7 {[%clk 0:00:07]} 55. Rxb6 {[%clk 0:00:17]}  Be7 {[%clk 0:00:08]} 56. d6 {[%clk 0:00:17]}  Bd8 {[%clk 0:00:08]} 57. Rc6 {[%clk 0:00:17]}  Ke6 {[%clk 0:00:08]} 58. b6 {[%clk 0:00:17]}  Kd7 {[%clk 0:00:07]} 59. b7 {[%clk 0:00:15]}  Rb2 {[%clk 0:00:08]} 60. Rxc5 {[%clk 0:00:14]}  Bb6 {[%clk 0:00:08]} 61. Kg3 {[%clk 0:00:11]}  Bxc5 {[%clk 0:00:08]} 62. Ba6 {[%clk 0:00:11]}  Bxd6 {[%clk 0:00:08]} 63. Bc4 {[%clk 0:00:08]}  Bb8 {[%clk 0:00:08]} 64. Bd5 {[%clk 0:00:08]}  Kd6 {[%clk 0:00:09]} 65. Kh3 {[%clk 0:00:08]}  Kc5 {[%clk 0:00:09]} 66. Kg3 {[%clk 0:00:08]}  Kd4 {[%clk 0:00:10]} 67. Kh3 {[%clk 0:00:08]}  Ke3 {[%clk 0:00:11]} 68. Kg3 {[%clk 0:00:08]}  Ba7 {[%clk 0:00:10]} 69. Bc6 {[%clk 0:00:06]}  Ke2 {[%clk 0:00:09]} 70. Bd5 {[%clk 0:00:07]}  Kf1 {[%clk 0:00:09]} 71. Bc6 {[%clk 0:00:06]}  Kg1 {[%clk 0:00:09]} 72. Bd5 {[%clk 0:00:05]}  Rg2+ {[%clk 0:00:10]} 73. Kh3 {[%clk 0:00:05]}  Rh2+ {[%clk 0:00:10]} 74. Kg3 {[%clk 0:00:06]}  Bf2# {[%clk 0:00:11]} 0-1


[Site "https://www.chess.com"]

[Event "Titled Tuesday Blitz August 22 Late 2023"]
[White "Matthew_Clarke"]
[Black "Avila Rodriguez, Joshua Ad"]
[BlackFideId "5126444"]
[WhiteElo "2244"]
[BlackElo "2420"]
[Result "0-1"]
[Round "3"]
[TimeControl "180+1"]
[Date "2023.08.22"]
[WhiteClock "0:00:00"]
[BlackClock "0:00:27"]
[Board "191"]

1. c4 {[%clk 0:03:00]}  Nf6 {[%clk 0:02:58]} 2. Nc3 {[%clk 0:03:00]}  e5 {[%clk 0:02:58]} 3. Nf3 {[%clk 0:02:58]}  Nc6 {[%clk 0:02:59]} 4. g3 {[%clk 0:02:58]}  d5 {[%clk 0:02:59]} 5. cxd5 {[%clk 0:02:58]}  Nxd5 {[%clk 0:03:00]} 6. Bg2 {[%clk 0:02:58]}  Nb6 {[%clk 0:03:00]} 7. O-O {[%clk 0:02:58]}  Be7 {[%clk 0:03:01]} 8. a3 {[%clk 0:02:55]}  O-O {[%clk 0:03:01]} 9. b4 {[%clk 0:02:52]}  Be6 {[%clk 0:02:50]} 10. Rb1 {[%clk 0:02:41]}  f6 {[%clk 0:02:48]} 11. d3 {[%clk 0:02:29]}  a5 {[%clk 0:02:43]} 12. b5 {[%clk 0:02:27]}  Nd4 {[%clk 0:02:44]} 13. Nd2 {[%clk 0:02:07]}  Rb8 {[%clk 0:02:34]} 14. e3 {[%clk 0:02:04]}  Nf5 {[%clk 0:02:34]} 15. Qe2 {[%clk 0:01:42]}  Qd7 {[%clk 0:02:29]} 16. Rd1 {[%clk 0:01:40]}  Rfd8 {[%clk 0:02:23]} 17. Nde4 {[%clk 0:01:37]}  Nh6 {[%clk 0:02:20]} 18. d4 {[%clk 0:01:19]}  Bc4 {[%clk 0:01:39]} 19. Qc2 {[%clk 0:01:15]}  exd4 {[%clk 0:01:30]} 20. Rxd4 {[%clk 0:01:13]}  Qe6 {[%clk 0:01:30]} 21. Ne2 {[%clk 0:00:31]}  Nf5 {[%clk 0:01:05]} 22. Rxd8+ {[%clk 0:00:28]}  Rxd8 {[%clk 0:01:05]} 23. Nf4 {[%clk 0:00:20]}  Qd7 {[%clk 0:01:00]} 24. Bd2 {[%clk 0:00:18]}  g5 {[%clk 0:00:44]} 25. Nh5 {[%clk 0:00:15]}  Kf7 {[%clk 0:00:38]} 26. Bxa5 {[%clk 0:00:05]}  Bd3 {[%clk 0:00:27]} 27. Qb3+ {[%clk 0:00:00]}  Kg6 {[%clk 0:00:27]} 0-1


[Site "https://www.chess.com"]

[Event "Titled Tuesday Blitz August 22 Late 2023"]
[White "BeautiFullMindChess"]
[Black "Ronka, Erik"]
[BlackFideId "505080"]
[WhiteElo "2228"]
[BlackElo "2412"]
[Result "0-1"]
[Round "3"]
[TimeControl "180+1"]
[Date "2023.08.22"]
[WhiteClock "0:00:57"]
[BlackClock "0:01:08"]
[Board "193"]

1. e4 {[%clk 0:02:49]}  e5 {[%clk 0:02:53]} 2. Nf3 {[%clk 0:02:48]}  Nc6 {[%clk 0:02:53]} 3. Bb5 {[%clk 0:02:40]}  a6 {[%clk 0:02:53]} 4. Ba4 {[%clk 0:02:39]}  Nf6 {[%clk 0:02:52]} 5. O-O {[%clk 0:02:35]}  Be7 {[%clk 0:02:52]} 6. Qe2 {[%clk 0:02:35]}  b5 {[%clk 0:02:48]} 7. Bb3 {[%clk 0:02:34]}  O-O {[%clk 0:02:48]} 8. c3 {[%clk 0:02:33]}  d5 {[%clk 0:02:48]} 9. exd5 {[%clk 0:02:33]}  Nxd5 {[%clk 0:02:48]} 10. Nxe5 {[%clk 0:02:31]}  Nxe5 {[%clk 0:02:49]} 11. Qxe5 {[%clk 0:02:31]}  Bb7 {[%clk 0:02:47]} 12. d4 {[%clk 0:02:27]}  Re8 {[%clk 0:02:33]} 13. Re1 {[%clk 0:02:17]}  Qd7 {[%clk 0:02:25]} 14. Be3 {[%clk 0:02:05]}  Bd6 {[%clk 0:02:02]} 15. Qh5 {[%clk 0:02:05]}  Nf4 {[%clk 0:01:59]} 16. Qd1 {[%clk 0:01:34]}  Nxg2 {[%clk 0:01:50]} 17. Nd2 {[%clk 0:01:09]}  Qh3 {[%clk 0:01:43]} 18. Nf1 {[%clk 0:00:57]}  Nh4 {[%clk 0:01:08]} 0-1


[Site "https://www.chess.com"]

[Event "Titled Tuesday Blitz August 22 Late 2023"]
[White "Vanek, Tomas"]
[Black "Mazibuko, Khanya"]
[WhiteFideId "313459"]
[BlackFideId "14321041"]
[WhiteElo "2202"]
[BlackElo "2401"]
[Result "0-1"]
[Round "3"]
[TimeControl "180+1"]
[Date "2023.08.22"]
[WhiteClock "0:00:11"]
[BlackClock "0:00:09"]
[Board "198"]

1. d4 {[%clk 0:02:59]}  Nf6 {[%clk 0:02:59]} 2. Bf4 {[%clk 0:02:55]}  d5 {[%clk 0:02:59]} 3. e3 {[%clk 0:02:54]}  c5 {[%clk 0:02:59]} 4. c3 {[%clk 0:02:50]}  Nc6 {[%clk 0:02:58]} 5. Nf3 {[%clk 0:02:45]}  Qb6 {[%clk 0:02:56]} 6. b3 {[%clk 0:02:42]}  Bg4 {[%clk 0:02:50]} 7. Bd3 {[%clk 0:02:35]}  e6 {[%clk 0:02:49]} 8. h3 {[%clk 0:02:30]}  Bh5 {[%clk 0:02:48]} 9. O-O {[%clk 0:02:07]}  Rc8 {[%clk 0:02:45]} 10. g4 {[%clk 0:01:56]}  Bg6 {[%clk 0:02:44]} 11. Ne5 {[%clk 0:01:55]}  c4 {[%clk 0:02:25]} 12. Nxg6 {[%clk 0:01:52]}  hxg6 {[%clk 0:02:22]} 13. Bc2 {[%clk 0:01:51]}  cxb3 {[%clk 0:02:15]} 14. axb3 {[%clk 0:01:50]}  Rxh3 {[%clk 0:02:11]} 15. Kg2 {[%clk 0:01:48]}  Rh4 {[%clk 0:02:02]} 16. Kg3 {[%clk 0:01:45]}  Rxg4+ {[%clk 0:01:59]} 17. Kh3 {[%clk 0:01:44]}  g5 {[%clk 0:01:38]} 18. Bg3 {[%clk 0:01:40]}  Bd6 {[%clk 0:01:01]} 19. Bxd6 {[%clk 0:01:33]}  Rh4+ {[%clk 0:00:53]} 20. Kg2 {[%clk 0:01:31]}  Nxd4 {[%clk 0:00:43]} 21. Bg3 {[%clk 0:01:26]}  Nxc2 {[%clk 0:00:37]} 22. Qxc2 {[%clk 0:01:25]}  Rh8 {[%clk 0:00:28]} 23. Qa2 {[%clk 0:01:24]}  a6 {[%clk 0:00:26]} 24. Qa4+ {[%clk 0:01:22]}  Ke7 {[%clk 0:00:27]} 25. Qa3+ {[%clk 0:01:10]}  Kd7 {[%clk 0:00:24]} 26. c4 {[%clk 0:01:07]}  Ne4 {[%clk 0:00:20]} 27. cxd5 {[%clk 0:01:00]}  exd5 {[%clk 0:00:20]} 28. Qa4+ {[%clk 0:00:53]}  Ke6 {[%clk 0:00:15]} 29. Qd4 {[%clk 0:00:49]}  Qxd4 {[%clk 0:00:13]} 30. exd4 {[%clk 0:00:49]}  Rc2 {[%clk 0:00:13]} 31. Na3 {[%clk 0:00:47]}  Rd2 {[%clk 0:00:07]} 32. Rfd1 {[%clk 0:00:42]}  Rc8 {[%clk 0:00:05]} 33. Rxd2 {[%clk 0:00:41]}  Nxd2 {[%clk 0:00:06]} 34. b4 {[%clk 0:00:39]}  g4 {[%clk 0:00:03]} 35. b5 {[%clk 0:00:39]}  Nf3 {[%clk 0:00:02]} 36. bxa6 {[%clk 0:00:38]}  bxa6 {[%clk 0:00:03]} 37. Nb1 {[%clk 0:00:35]}  Rc1 {[%clk 0:00:04]} 38. Rxa6+ {[%clk 0:00:34]}  Kf5 {[%clk 0:00:04]} 39. Bh2 {[%clk 0:00:32]}  Rxb1 {[%clk 0:00:04]} 40. Ra7 {[%clk 0:00:31]}  Ke6 {[%clk 0:00:04]} 41. Ra6+ {[%clk 0:00:31]}  Kf5 {[%clk 0:00:05]} 42. Ra7 {[%clk 0:00:31]}  Kg6 {[%clk 0:00:05]} 43. Ra5 {[%clk 0:00:30]}  f6 {[%clk 0:00:06]} 44. Rxd5 {[%clk 0:00:30]}  Nxh2 {[%clk 0:00:06]} 45. Kxh2 {[%clk 0:00:29]}  Rb3 {[%clk 0:00:07]} 46. Kg2 {[%clk 0:00:29]}  Rd3 {[%clk 0:00:07]} 47. Rd7 {[%clk 0:00:29]}  Kh6 {[%clk 0:00:08]} 48. d5 {[%clk 0:00:29]}  g5 {[%clk 0:00:08]} 49. d6 {[%clk 0:00:28]}  Kg6 {[%clk 0:00:08]} 50. Kh2 {[%clk 0:00:27]}  Kf5 {[%clk 0:00:08]} 51. Rd8 {[%clk 0:00:25]}  Ke6 {[%clk 0:00:08]} 52. Re8+ {[%clk 0:00:22]}  Kd7 {[%clk 0:00:07]} 53. Re3 {[%clk 0:00:08]}  Rxe3 {[%clk 0:00:07]} 54. fxe3 {[%clk 0:00:09]}  f5 {[%clk 0:00:06]} 55. e4 {[%clk 0:00:07]}  fxe4 {[%clk 0:00:04]} 56. Kg3 {[%clk 0:00:08]}  Kxd6 {[%clk 0:00:05]} 57. Kxg4 {[%clk 0:00:09]}  Ke5 {[%clk 0:00:05]} 58. Kg3 {[%clk 0:00:10]}  Kd4 {[%clk 0:00:05]} 59. Kf2 {[%clk 0:00:11]}  Kd3 {[%clk 0:00:05]} 60. Ke1 {[%clk 0:00:11]}  Ke3 {[%clk 0:00:06]} 61. Kf1 {[%clk 0:00:11]}  Kd2 {[%clk 0:00:06]} 62. Kf2 {[%clk 0:00:11]}  e3+ {[%clk 0:00:07]} 63. Kg3 {[%clk 0:00:12]}  e2 {[%clk 0:00:08]} 64. Kg4 {[%clk 0:00:13]}  e1=Q {[%clk 0:00:09]} 65. Kf5 {[%clk 0:00:11]}  Qh4 {[%clk 0:00:09]} 0-1


[Site "https://www.chess.com"]

[Event "Titled Tuesday Blitz August 22 Late 2023"]
[White "Penagalapati, Abhinav"]
[Black "Haitin, Ilja"]
[WhiteFideId "30938210"]
[BlackFideId "4501764"]
[WhiteElo "2192"]
[BlackElo "2395"]
[Result "1-0"]
[Round "3"]
[TimeControl "180+1"]
[Date "2023.08.22"]
[WhiteClock "0:00:44"]
[BlackClock "0:00:00"]
[Board "201"]

1. Nf3 {[%clk 0:03:00]}  Nf6 {[%clk 0:01:53]} 2. g3 {[%clk 0:03:00]}  b6 {[%clk 0:01:53]} 3. Bg2 {[%clk 0:03:00]}  Bb7 {[%clk 0:01:54]} 4. O-O {[%clk 0:03:00]}  e6 {[%clk 0:01:54]} 5. b3 {[%clk 0:03:00]}  Be7 {[%clk 0:01:54]} 6. Bb2 {[%clk 0:03:01]}  O-O {[%clk 0:01:54]} 7. d3 {[%clk 0:03:01]}  c5 {[%clk 0:01:53]} 8. c4 {[%clk 0:03:02]}  Nc6 {[%clk 0:01:53]} 9. Nbd2 {[%clk 0:03:02]}  d5 {[%clk 0:01:54]} 10. Rc1 {[%clk 0:03:00]}  d4 {[%clk 0:01:54]} 11. Re1 {[%clk 0:02:54]}  e5 {[%clk 0:01:53]} 12. Nf1 {[%clk 0:02:54]}  Bd6 {[%clk 0:01:51]} 13. N3d2 {[%clk 0:02:52]}  Qc7 {[%clk 0:01:50]} 14. e3 {[%clk 0:02:47]}  Rae8 {[%clk 0:01:49]} 15. Qc2 {[%clk 0:02:45]}  Nb4 {[%clk 0:01:47]} 16. Qb1 {[%clk 0:02:46]}  Bxg2 {[%clk 0:01:48]} 17. Kxg2 {[%clk 0:02:47]}  h5 {[%clk 0:01:37]} 18. a3 {[%clk 0:02:28]}  Nc6 {[%clk 0:01:21]} 19. Nf3 {[%clk 0:02:28]}  Qb7 {[%clk 0:01:17]} 20. N1d2 {[%clk 0:02:23]}  a5 {[%clk 0:00:52]} 21. Qc2 {[%clk 0:02:09]}  h4 {[%clk 0:00:36]} 22. Qd1 {[%clk 0:01:59]}  g5 {[%clk 0:00:33]} 23. Nxg5 {[%clk 0:01:44]}  Nb4+ {[%clk 0:00:24]} 24. Nde4 {[%clk 0:01:22]}  Na2 {[%clk 0:00:19]} 25. Ra1 {[%clk 0:01:14]}  Nc3 {[%clk 0:00:19]} 26. Qf3 {[%clk 0:01:12]}  Nfxe4 {[%clk 0:00:16]} 27. dxe4 {[%clk 0:01:11]}  f6 {[%clk 0:00:10]} 28. Nh3 {[%clk 0:01:10]}  Qg7 {[%clk 0:00:08]} 29. Bxc3 {[%clk 0:01:09]}  dxc3 {[%clk 0:00:09]} 30. Kh1 {[%clk 0:01:04]}  f5 {[%clk 0:00:09]} 31. Rg1 {[%clk 0:01:03]}  fxe4 {[%clk 0:00:09]} 32. Qxe4 {[%clk 0:01:03]}  Qh7 {[%clk 0:00:07]} 33. Qd5+ {[%clk 0:01:01]}  Kh8 {[%clk 0:00:08]} 34. Ng5 {[%clk 0:00:58]}  Qg6 {[%clk 0:00:06]} 35. Ne4 {[%clk 0:00:56]}  Be7 {[%clk 0:00:06]} 36. Nxc3 {[%clk 0:00:49]}  h3 {[%clk 0:00:06]} 37. Qe4 {[%clk 0:00:49]}  Qxe4+ {[%clk 0:00:04]} 38. Nxe4 {[%clk 0:00:49]}  Rd8 {[%clk 0:00:03]} 39. Rad1 {[%clk 0:00:50]}  Kg7 {[%clk 0:00:02]} 40. Rge1 {[%clk 0:00:48]}  Kg6 {[%clk 0:00:01]} 41. Kg1 {[%clk 0:00:44]}  Kf5 {[%clk 0:00:01]} 42. Nc3 {[%clk 0:00:44]}  e4 {[%clk 0:00:00]} 43. Nd5 {[%clk 0:00:44]} 1-0


[Site "https://www.chess.com"]

[Event "Titled Tuesday Blitz August 22 Late 2023"]
[White "campochess"]
[Black "Melikhov, Evgeny V."]
[BlackFideId "4122046"]
[WhiteElo "2191"]
[BlackElo "2390"]
[Result "0-1"]
[Round "3"]
[TimeControl "180+1"]
[Date "2023.08.22"]
[WhiteClock "0:01:20"]
[BlackClock "0:00:47"]
[Board "202"]

1. d4 {[%clk 0:02:48]}  Nf6 {[%clk 0:02:59]} 2. Bg5 {[%clk 0:02:48]}  e6 {[%clk 0:02:59]} 3. e4 {[%clk 0:02:47]}  h6 {[%clk 0:02:59]} 4. Bxf6 {[%clk 0:02:46]}  Qxf6 {[%clk 0:02:59]} 5. Nf3 {[%clk 0:02:46]}  d5 {[%clk 0:02:59]} 6. Nbd2 {[%clk 0:02:45]}  c5 {[%clk 0:02:56]} 7. c3 {[%clk 0:02:44]}  Nc6 {[%clk 0:02:49]} 8. Bb5 {[%clk 0:02:44]}  cxd4 {[%clk 0:02:40]} 9. Nxd4 {[%clk 0:02:37]}  Bd7 {[%clk 0:02:38]} 10. a4 {[%clk 0:02:32]}  Nxd4 {[%clk 0:02:34]} 11. Bxd7+ {[%clk 0:02:27]}  Kxd7 {[%clk 0:02:33]} 12. cxd4 {[%clk 0:02:27]}  Qxd4 {[%clk 0:02:33]} 13. O-O {[%clk 0:02:27]}  Bd6 {[%clk 0:02:17]} 14. exd5 {[%clk 0:02:25]}  exd5 {[%clk 0:02:10]} 15. Nf3 {[%clk 0:02:22]}  Qxd1 {[%clk 0:02:08]} 16. Rfxd1 {[%clk 0:02:21]}  Rac8 {[%clk 0:02:04]} 17. Rxd5 {[%clk 0:02:19]}  Rc5 {[%clk 0:02:04]} 18. Rad1 {[%clk 0:02:17]}  Rxd5 {[%clk 0:02:04]} 19. Rxd5 {[%clk 0:02:17]}  Rc8 {[%clk 0:01:58]} 20. g3 {[%clk 0:02:17]}  Rc5 {[%clk 0:01:49]} 21. Rd3 {[%clk 0:02:09]}  Kc7 {[%clk 0:01:44]} 22. b3 {[%clk 0:02:05]}  g5 {[%clk 0:01:39]} 23. Kg2 {[%clk 0:02:05]}  g4 {[%clk 0:01:36]} 24. Nd2 {[%clk 0:02:01]}  Rc2 {[%clk 0:01:31]} 25. Ne4 {[%clk 0:01:59]}  Be5 {[%clk 0:01:23]} 26. b4 {[%clk 0:01:50]}  a5 {[%clk 0:01:09]} 27. bxa5 {[%clk 0:01:49]}  Rc4 {[%clk 0:01:08]} 28. Nd2 {[%clk 0:01:43]}  Rxa4 {[%clk 0:01:06]} 29. Rd5 {[%clk 0:01:43]}  f6 {[%clk 0:01:03]} 30. Nf1 {[%clk 0:01:37]}  Kc6 {[%clk 0:00:59]} 31. Rd8 {[%clk 0:01:36]}  Rxa5 {[%clk 0:00:56]} 32. Ne3 {[%clk 0:01:36]}  h5 {[%clk 0:00:53]} 33. Rh8 {[%clk 0:01:32]}  Bd4 {[%clk 0:00:50]} 34. Nc4 {[%clk 0:01:26]}  Ra2 {[%clk 0:00:48]} 35. Rxh5 {[%clk 0:01:23]}  Rxf2+ {[%clk 0:00:47]} 36. Kh1 {[%clk 0:01:21]}  Rf1+ {[%clk 0:00:47]} 37. Kg2 {[%clk 0:01:20]}  Rg1# {[%clk 0:00:47]} 0-1


[Site "https://www.chess.com"]

[Event "Titled Tuesday Blitz August 22 Late 2023"]
[White "Quirke, Jeffrey"]
[Black "Ozalp, Burak"]
[WhiteFideId "2013029"]
[BlackFideId "6314210"]
[WhiteElo "2169"]
[BlackElo "2384"]
[Result "0-1"]
[Round "3"]
[TimeControl "180+1"]
[Date "2023.08.22"]
[WhiteClock "0:00:00"]
[BlackClock "0:00:26"]
[Board "204"]

1. e4 {[%clk 0:03:00]}  e6 {[%clk 0:02:57]} 2. b3 {[%clk 0:02:58]}  c5 {[%clk 0:02:53]} 3. Bb2 {[%clk 0:02:58]}  b6 {[%clk 0:02:54]} 4. f4 {[%clk 0:02:54]}  Bb7 {[%clk 0:02:53]} 5. d3 {[%clk 0:02:53]}  d6 {[%clk 0:02:50]} 6. Nf3 {[%clk 0:02:52]}  Nd7 {[%clk 0:02:50]} 7. Be2 {[%clk 0:02:53]}  Ne7 {[%clk 0:02:45]} 8. O-O {[%clk 0:02:52]}  Nc6 {[%clk 0:02:42]} 9. Nbd2 {[%clk 0:02:45]}  Qc7 {[%clk 0:02:39]} 10. Qe1 {[%clk 0:02:44]}  Be7 {[%clk 0:02:33]} 11. Qg3 {[%clk 0:02:25]}  Bf6 {[%clk 0:02:27]} 12. Bxf6 {[%clk 0:02:14]}  gxf6 {[%clk 0:02:27]} 13. Qh4 {[%clk 0:02:06]}  O-O-O {[%clk 0:02:24]} 14. c3 {[%clk 0:02:02]}  Ba6 {[%clk 0:02:11]} 15. b4 {[%clk 0:01:49]}  Kb8 {[%clk 0:02:07]} 16. Rab1 {[%clk 0:01:43]}  Ne7 {[%clk 0:01:33]} 17. Rfc1 {[%clk 0:01:37]}  Ng6 {[%clk 0:01:33]} 18. Qg3 {[%clk 0:01:28]}  Rdg8 {[%clk 0:01:33]} 19. f5 {[%clk 0:01:10]}  Nge5 {[%clk 0:01:30]} 20. Nxe5 {[%clk 0:00:52]}  Rxg3 {[%clk 0:01:18]} 21. Nxd7+ {[%clk 0:00:52]}  Qxd7 {[%clk 0:01:18]} 22. hxg3 {[%clk 0:00:52]}  exf5 {[%clk 0:01:17]} 23. c4 {[%clk 0:00:34]}  Rg8 {[%clk 0:01:10]} 24. exf5 {[%clk 0:00:22]}  Rxg3 {[%clk 0:01:08]} 25. Ne4 {[%clk 0:00:22]}  Re3 {[%clk 0:00:53]} 26. Kf2 {[%clk 0:00:21]}  Rxe2+ {[%clk 0:00:45]} 27. Kxe2 {[%clk 0:00:21]}  Qxf5 {[%clk 0:00:46]} 28. Rf1 {[%clk 0:00:19]}  Qg4+ {[%clk 0:00:43]} 29. Ke3 {[%clk 0:00:11]}  Bb7 {[%clk 0:00:42]} 30. Rxf6 {[%clk 0:00:08]}  Bxe4 {[%clk 0:00:37]} 31. dxe4 {[%clk 0:00:08]}  Qg5+ {[%clk 0:00:35]} 32. Rf4 {[%clk 0:00:07]}  Qg3+ {[%clk 0:00:35]} 33. Rf3 {[%clk 0:00:05]}  Qxg2 {[%clk 0:00:35]} 34. Rbf1 {[%clk 0:00:05]}  cxb4 {[%clk 0:00:34]} 35. Rxf7 {[%clk 0:00:04]}  Qxa2 {[%clk 0:00:29]} 36. Rxh7 {[%clk 0:00:04]}  Qb3+ {[%clk 0:00:27]} 37. Kd4 {[%clk 0:00:00]}  Qb2+ {[%clk 0:00:26]} 0-1


[Site "https://www.chess.com"]